fUST/lending_fUST_20260111
["ID","MTS","AMOUNT","RATE_DAILY","PERIOD"]
[401243466,1768067440667,-509.39,0.00013698,2]
[401243468,1768067440676,-509.39,0.00013698,2]
[401243470,1768067440685,-509.39,0.00013698,2]
[401243472,1768067440694,-509.39,0.00013698,2]
[401243474,1768067440704,-509.39,0.00013698,2]
[401243476,1768067440713,-509.39,0.00013698,2]
[401243478,1768067440722,-509.39,0.00013698,2]
[401243480,1768067440731,-509.39,0.00013698,2]
[401243482,1768067440740,-509.39,0.00013698,2]
[401243484,1768067440749,-509.41047474,0.00013698,2]
[401243486,1768067440758,-500.0,0.00013699,2]
[401243488,1768067440767,-1000.0,0.00013705,2]
[401243490,1768067440776,-500.0,0.00013805,2]
[401243492,1768067440785,-3699.6945522,0.00013855,2]
[401243494,1768067440795,-250.0,0.0001387,2]
[401243496,1768067440804,-162.18,0.0001387,2]
[401243498,1768067440813,-162.18,0.0001387,2]
[401243500,1768067440825,-162.18,0.0001387,2]
[401243502,1768067440834,-500.0,0.00013942,2]
[401243504,1768067440844,-1500.0,0.00013996,2]
[401243506,1768067440854,-204.0,0.00014042,2]
[401243508,1768067440864,-500.0,0.00014079,2]
[401243510,1768067440874,-4937.06029728,0.00014152,2]
[401243512,1768067440884,-500.0,0.00014216,2]
[401243514,1768067440896,-1000.0,0.00014247,2]
[401243515,1768067440906,-500.0,0.00014353,2]
[401243518,1768067440915,-489.65888898,0.0001449,2]
[401243519,1768067440926,-1500.0,0.00014795,2]
[401243521,1768067440935,-1000.0,0.00015076,2]
[401243523,1768067440944,-244.0,0.00015076,2]
[401243524,1768067440953,-498.9723282,0.00015342,2]
[401243525,1768067440962,-231.0,0.00016042,2]
[401243526,1768067440971,-1000.0,0.00016583,2]
[401243527,1768067440980,-492.0,0.00016583,2]
[401243528,1768067440989,-1500.0,0.00016736,2]
[401243529,1768067440999,-1500.0,0.00017034,2]
[401243530,1768067441011,-2078.033271,0.00017034,2]
[401243531,1768067441019,-258.0,0.00018042,2]
[401243532,1768067441028,-1000.0,0.00018241,2]
[401243533,1768067441037,-791.0,0.00018241,2]
[401243534,1768067441046,-303.10001603,0.000189,2]
[401243535,1768067441055,-198.62096574,0.00019089,2]
[401243536,1768067441063,-285.0,0.00020042,2]
[401243537,1768067441072,-1000.0,0.00020066,2]
[401243538,1768067441081,-1000.0,0.00020066,2]
[401243539,1768067441090,-181.46,0.000201,2]
[401243540,1768067441098,-6834.71,0.000201,2]
[401243541,1768067441107,-151.0,0.000209,3]
[401243542,1768067441116,-312.0,0.00022042,2]
[401243543,1768067441125,-1000.0,0.00022072,10]
[401243544,1768067441135,-1000.0,0.00022072,10]
[401243545,1768067441144,-579.0,0.00022072,10]
[401243546,1768067441152,-1041.66666667,0.00022697,2]
[401243547,1768067441161,-339.0,0.00024042,2]
[401243548,1768067441171,-1000.0,0.00024279,10]
[401243549,1768067441180,-1000.0,0.00024279,10]
[401243550,1768067441189,-1000.0,0.00024279,10]
[401243551,1768067441198,-218.0,0.00024849,14]
[401243553,1768067441207,-150.1,0.00025202,2]
[401243554,1768067441216,-250.0,0.00025343,2]
[401243557,1768067441227,-366.0,0.00026042,2]
[401243559,1768067441237,-500.0,0.00026272,7]
[401243561,1768067441248,-1000.0,0.00026707,30]
[401243563,1768067441258,-1000.0,0.00026707,30]
[401243565,1768067441266,-1000.0,0.00026707,30]
[401243567,1768067441276,-715.0,0.00026707,30]
[401243568,1768067441285,-516.35781364,0.00026973,7]
[401243570,1768067441294,-393.0,0.00028042,2]
[401243572,1768067441304,-169.0,0.00028137,28]
[401243574,1768067441313,-231.35629748,0.00029058,5]
[401243576,1768067441322,-1000.0,0.00029378,30]
[401243578,1768067441331,-1000.0,0.00029378,30]
[401243580,1768067441340,-1000.0,0.00029378,30]
[401243582,1768067441349,-420.0,0.00030042,2]
[401243584,1768067441358,-169.04140704,0.00030379,26]
[401243586,1768067441368,-585.492,0.00030379,26]
[401243588,1768067441377,-151.0,0.000308,12]
[401243590,1768067441386,-155.0,0.00031425,46]
[401243592,1768067441395,-9999.3338094,0.00031899,2]
[401243594,1768067441405,-250.0,0.00031899,2]
[401243596,1768067441414,-250.0,0.00031899,2]
[401243598,1768067441423,-268.92290975,0.00031899,2]
[401243600,1768067441432,-250.0,0.00031899,2]
[401243602,1768067441442,-250.0,0.00031899,2]
[401243604,1768067441451,-250.0,0.00031899,2]
[401243606,1768067441460,-250.0,0.00031899,2]
[401243608,1768067441469,-304.08381326,0.00031899,2]
[401243610,1768067441478,-151.0,0.00031899,2]
[401243612,1768067441487,-151.0,0.00031899,2]
[401243614,1768067441496,-151.0,0.00031899,2]
[401243616,1768067441505,-447.0,0.00032042,2]
[401243618,1768067441515,-999.0,0.00032876,120]
[401243620,1768067441523,-6834.71,0.000329,14]
[401243622,1768067441532,-488.5753652,0.0003316,2]
[401243624,1768067441542,-210.0,0.00033699,5]
[401243626,1768067441550,-999.0,0.00033972,120]
[401243628,1768067441559,-474.0,0.00034042,120]
[401243630,1768067441568,-151.67,0.00034307,60]
[401243632,1768067441577,-324.5,0.00034388,30]
[401243634,1768067441587,-705.0,0.00034388,30]
[401243636,1768067441596,-151.67,0.00034407,60]
[401243638,1768067441605,-151.67,0.00034507,60]
[401243640,1768067441614,-270.0,0.00034521,5]
[401243642,1768067441623,-151.67,0.00034607,60]
[401243644,1768067441632,-5058.79910613,0.00034618,49]
[401243646,1768067441642,-151.67,0.00034707,60]
[401243648,1768067441650,-151.67,0.00034807,60]
[401243650,1768067441660,-352.89,0.00034884,10]
[401243651,1768067441669,-151.67,0.00034907,60]
[401243654,1768067441679,-151.67,0.00035007,60]
[401243656,1768067441688,-999.0,0.00035068,120]
[401243657,1768067441699,-151.67,0.00035107,60]
[401243659,1768067441708,-151.67,0.00035207,60]
[401243661,1768067441718,-181.46,0.000353,30]
[401243663,1768067441727,-151.67,0.00035307,60]
[401243665,1768067441736,-330.0,0.00035342,5]
[401243667,1768067441746,-151.77,0.00035407,60]
[401243669,1768067441755,-500.0,0.00035616,30]
[401243671,1768067441764,-334.34878739,0.00035616,7]
[401243673,1768067441773,-156.012,0.00035706,2]
[401243675,1768067441782,-281.87,0.00035746,2]
[401243677,1768067441791,-918.54832174,0.00035806,2]
[401243679,1768067441799,-156.012,0.00035806,2]
[401243681,1768067441809,-156.012,0.00035906,2]
[401243683,1768067441822,-327905.18107711,0.00035937,4]
[401243685,1768067441831,-313.8868207,0.00036,120]
[401243687,1768067441840,-156.012,0.00036006,2]
[401243689,1768067441850,-501.0,0.00036042,120]
[401243691,1768067441859,-377.1655679,0.00036082,30]
[401243693,1768067441868,-377.1655679,0.00036082,30]
[401243696,1768067441878,-376.6134449,0.00036082,30]
[401243697,1768067441888,-156.012,0.00036106,2]
[401243710,1768067441987,-731.96785671,0.00036164,120]
[401243712,1768067442009,-500.0,0.00036164,30]
[401243715,1768067442019,-180.020001,0.00036164,5]
[401243717,1768067442028,-161.0,0.00036356,87]
[401243719,1768067442036,-453.20238296,0.00036612,2]
[401243721,1768067442045,-453.20238294,0.00036649,2]
[401243723,1768067442054,-3652.4050783,0.00036658,2]
[401243725,1768067442063,-453.20238294,0.00036686,2]
[401243727,1768067442072,-500.0,0.00036712,30]
[401243729,1768067442081,-500.0,0.00036712,30]
[401243731,1768067442090,-500.0,0.00036712,30]
[401243732,1768067442099,-500.0,0.00036712,30]
[401243735,1768067442108,-500.17912256,0.00036712,30]
[401243736,1768067442117,-500.0,0.00036712,2]
[401243738,1768067442126,-2479.36,0.00036712,30]
[401243740,1768067442135,-2479.36,0.00036712,30]
[401243742,1768067442144,-2479.36,0.00036712,30]
[401243744,1768067442154,-2479.36,0.00036712,30]
[401243746,1768067442163,-2479.36,0.00036712,30]
[401243748,1768067442173,-2479.36,0.00036712,30]
[401243750,1768067442182,-2479.36,0.00036712,30]
[401243752,1768067442191,-2479.36,0.00036712,30]
[401243754,1768067442200,-2479.36,0.00036712,30]
[401243756,1768067442210,-2479.36,0.00036712,30]
[401243758,1768067442219,-2479.36,0.00036712,30]
[401243760,1768067442228,-2479.36,0.00036712,30]
[401243762,1768067442237,-2479.36,0.00036712,30]
[401243764,1768067442247,-2479.36,0.00036712,30]
[401243766,1768067442256,-2479.36,0.00036712,30]
[401243768,1768067442266,-2479.36,0.00036712,30]
[401243770,1768067442275,-2479.36,0.00036712,30]
[401243772,1768067442284,-2479.36,0.00036712,30]
[401243774,1768067442293,-2479.36,0.00036712,30]
[401243776,1768067442303,-2479.36,0.00036712,30]
[401243778,1768067442313,-2479.36,0.00036712,30]
[401243780,1768067442322,-2479.36,0.00036712,30]
[401243782,1768067442332,-2479.36,0.00036712,30]
[401243784,1768067442342,-2479.42,0.00036712,30]
[401243786,1768067442351,-16189.62,0.00036712,30]
[401243789,1768067442361,-16189.62,0.00036712,30]
[401243790,1768067442371,-16189.62,0.00036712,30]
[401243793,1768067442381,-4887.27,0.00036712,30]
[401243795,1768067442391,-16189.62,0.00036712,30]
[401243797,1768067442402,-4887.27,0.00036712,30]
[401243799,1768067442411,-16189.62,0.00036712,30]
[401243801,1768067442420,-4887.27,0.00036712,30]
[401243803,1768067442430,-16189.62,0.00036712,30]
[401243805,1768067442439,-4887.27,0.00036712,30]
[401243807,1768067442449,-16189.62,0.00036712,30]
[401243809,1768067442458,-4887.27,0.00036712,30]
[401243811,1768067442468,-16189.62,0.00036712,30]
[401243812,1768067442477,-4887.27,0.00036712,30]
[401243815,1768067442487,-16189.62,0.00036712,30]
[401243816,1768067442496,-4887.27,0.00036712,30]
[401243818,1768067442506,-16189.62,0.00036712,30]
[401243821,1768067442515,-16189.62,0.00036712,30]
[401243823,1768067442526,-4887.27,0.00036712,30]
[401243825,1768067442535,-16189.62,0.00036712,30]
[401243827,1768067442544,-4887.27,0.00036712,30]
[401243829,1768067442554,-16189.62,0.00036712,30]
[401243831,1768067442563,-4887.27,0.00036712,30]
[401243834,1768067442572,-4887.27,0.00036712,30]
[401243836,1768067442581,-4887.27,0.00036712,30]
[401243838,1768067442591,-16189.62,0.00036712,30]
[401243840,1768067442600,-4887.27,0.00036712,30]
[401243842,1768067442609,-16189.62,0.00036712,30]
[401243844,1768067442618,-4887.27,0.00036712,30]
[401243845,1768067442627,-16189.62,0.00036712,30]
[401243847,1768067442637,-4887.27,0.00036712,30]
[401243848,1768067442646,-16189.62,0.00036712,30]
[401243849,1768067442655,-4887.27,0.00036712,30]
[401243850,1768067442664,-16189.62,0.00036712,30]
[401243851,1768067442674,-4887.27,0.00036712,30]
[401243852,1768067442682,-16189.62,0.00036712,30]
[401243853,1768067442691,-4887.27,0.00036712,30]
[401243854,1768067442701,-16189.62,0.00036712,30]
[401243855,1768067442710,-4887.27,0.00036712,30]
[401243856,1768067442718,-4887.27,0.00036712,30]
[401243857,1768067442727,-16189.62,0.00036712,30]
[401243858,1768067442737,-4887.27,0.00036712,30]
[401243859,1768067442747,-16189.62,0.00036712,30]
[401243860,1768067442756,-4887.27,0.00036712,30]
[401243861,1768067442766,-16189.62,0.00036712,30]
[401243862,1768067442775,-4887.27,0.00036712,30]
[401243863,1768067442784,-16189.70100427,0.00036712,30]
[401243864,1768067442794,-4887.3,0.00036712,30]
[401243865,1768067442803,-2192.87,0.00036712,30]
[401243866,1768067442813,-2192.87,0.00036712,30]
[401243867,1768067442826,-2192.87,0.00036712,30]
[401243868,1768067442836,-2192.87,0.00036712,30]
[401243869,1768067442847,-2192.87,0.00036712,30]
[401243870,1768067442856,-2192.87,0.00036712,30]
[401243871,1768067442867,-2192.87,0.00036712,30]
[401243872,1768067442876,-2192.87,0.00036712,30]
[401243873,1768067442887,-2192.87,0.00036712,30]
[401243874,1768067442896,-2192.87,0.00036712,30]
[401243875,1768067442905,-2192.87,0.00036712,30]
[401243876,1768067442914,-2192.87,0.00036712,30]
[401243877,1768067442924,-2192.87,0.00036712,30]
[401243878,1768067442933,-2192.87,0.00036712,30]
[401243879,1768067442943,-2192.87,0.00036712,30]
[401243880,1768067442952,-2192.87,0.00036712,30]
[401243881,1768067442961,-2192.87,0.00036712,30]
[401243882,1768067442970,-2192.87,0.00036712,30]
[401243883,1768067442979,-2192.87,0.00036712,30]
[401243884,1768067442988,-2192.87,0.00036712,30]
[401243885,1768067442999,-2192.87,0.00036712,30]
[401243886,1768067443008,-2192.87,0.00036712,30]
[401243887,1768067443017,-2192.87,0.00036712,30]
[401243888,1768067443026,-2192.89,0.00036712,30]
[401243889,1768067443036,-2195.79,0.00036712,30]
[401243890,1768067443046,-2195.79,0.00036712,30]
[401243891,1768067443055,-2195.79,0.00036712,30]
[401243892,1768067443065,-2195.79,0.00036712,30]
[401243893,1768067443074,-2195.79,0.00036712,30]
[401243894,1768067443083,-2195.79,0.00036712,30]
[401243895,1768067443093,-2195.79,0.00036712,30]
[401243896,1768067443102,-2195.79,0.00036712,30]
[401243897,1768067443113,-2195.79,0.00036712,30]
[401243898,1768067443125,-2195.79,0.00036712,30]
[401243899,1768067443135,-2195.79,0.00036712,30]
[401243900,1768067443145,-2195.79,0.00036712,30]
[401243901,1768067443154,-2195.79,0.00036712,30]
[401243902,1768067443164,-2195.79,0.00036712,30]
[401243903,1768067443173,-2195.79,0.00036712,30]
[401243904,1768067443183,-2195.79,0.00036712,30]
[401243905,1768067443193,-2195.79,0.00036712,30]
[401243906,1768067443203,-2195.79,0.00036712,30]
[401243907,1768067443213,-2195.79,0.00036712,30]
[401243909,1768067443222,-2195.79,0.00036712,30]
[401243911,1768067443232,-2195.79,0.00036712,30]
[401243912,1768067443241,-2195.79,0.00036712,30]
[401243913,1768067443251,-2195.79,0.00036712,30]
[401243914,1768067443260,-2195.88,0.00036712,30]
[401243915,1768067443270,-241.15003758,0.00036712,120]
[401243917,1768067443279,-26257.46,0.00036712,30]
[401243918,1768067443288,-26257.46,0.00036712,30]
[401243919,1768067443297,-26257.46,0.00036712,30]
[401243920,1768067443307,-26257.46,0.00036712,30]
[401243921,1768067443316,-26257.46,0.00036712,30]
[401243922,1768067443326,-26257.46,0.00036712,30]
[401243923,1768067443335,-26257.46,0.00036712,30]
[401243924,1768067443344,-26257.46,0.00036712,30]
[401243925,1768067443354,-26257.46,0.00036712,30]
[401243926,1768067443364,-26257.46,0.00036712,30]
[401243927,1768067443374,-26257.46,0.00036712,30]
[401243929,1768067443384,-26257.46,0.00036712,30]
[401243930,1768067443394,-26257.46,0.00036712,30]
[401243931,1768067443403,-26257.46,0.00036712,30]
[401243932,1768067443413,-26257.46,0.00036712,30]
[401243933,1768067443422,-26257.46,0.00036712,30]
[401243934,1768067443432,-26257.46,0.00036712,30]
[401243935,1768067443442,-26257.46,0.00036712,30]
[401243936,1768067443452,-26257.46,0.00036712,30]
[401243937,1768067443462,-26257.46,0.00036712,30]
[401243938,1768067443471,-26257.46,0.00036712,30]
[401243939,1768067443481,-26257.46,0.00036712,30]
[401243940,1768067443490,-26257.46,0.00036712,30]
[401243941,1768067443500,-26257.54452659,0.00036712,30]
[401243942,1768067443510,-5048.48,0.00036712,30]
[401243943,1768067443520,-5048.48,0.00036712,30]
[401243944,1768067443529,-5048.48,0.00036712,30]
[401243945,1768067443538,-5048.48,0.00036712,30]
[401243946,1768067443548,-5048.48,0.00036712,30]
[401243947,1768067443558,-5048.48,0.00036712,30]
[401243948,1768067443567,-5048.48,0.00036712,30]
[401243949,1768067443576,-5048.48,0.00036712,30]
[401243950,1768067443585,-5048.48,0.00036712,30]
[401243951,1768067443595,-5048.48,0.00036712,30]
[401243952,1768067443604,-5048.48,0.00036712,30]
[401243953,1768067443615,-5048.48,0.00036712,30]
[401243954,1768067443625,-5048.48,0.00036712,30]
[401243955,1768067443635,-5048.48,0.00036712,30]
[401243956,1768067443646,-5048.48,0.00036712,30]
[401243957,1768067443656,-5048.48,0.00036712,30]
[401243958,1768067443667,-5048.48,0.00036712,30]
[401243959,1768067443677,-5048.48,0.00036712,30]
[401243960,1768067443687,-5048.48,0.00036712,30]
[401243961,1768067443696,-5048.48,0.00036712,30]
[401243962,1768067443706,-5048.48,0.00036712,30]
[401243963,1768067443716,-5048.48,0.00036712,30]
[401243964,1768067443727,-5048.48,0.00036712,30]
[401243965,1768067443736,-5048.65,0.00036712,30]
[401243966,1768067443746,-500.0,0.00036712,2]
[401243967,1768067443755,-500.0,0.00036712,2]
[401243968,1768067443764,-500.0,0.00036712,2]
[401243969,1768067443773,-500.0,0.00036712,2]
[401243970,1768067443783,-500.0,0.00036712,2]
[401243971,1768067443792,-500.0,0.00036712,2]
[401243972,1768067443802,-500.0,0.00036712,2]
[401243973,1768067443810,-500.0,0.00036712,2]
[401243974,1768067443824,-500.0,0.00036712,2]
[401243975,1768067443833,-500.0,0.00036712,2]
[401243976,1768067443843,-500.0,0.00036712,2]
[401243977,1768067443852,-500.0,0.00036712,2]
[401243978,1768067443862,-500.0,0.00036712,2]
[401243979,1768067443871,-500.0,0.00036712,2]
[401243980,1768067443881,-500.0,0.00036712,2]
[401243981,1768067443890,-500.0,0.00036712,2]
[401243982,1768067443899,-502.32745149,0.00036712,2]
[401243983,1768067443908,-532.55,0.00036712,30]
[401243984,1768067443918,-453.20238294,0.00036724,2]
[401243985,1768067443927,-453.20238294,0.00036761,2]
[401243986,1768067443936,-453.20238294,0.00036798,2]
[401243987,1768067443945,-453.20238294,0.00036835,2]
[401243988,1768067443955,-1112.0,0.00036858,2]
[401243989,1768067443964,-1112.0,0.00036859,3]
[401243990,1768067443973,-1112.0,0.0003686,4]
[401243991,1768067443983,-1112.0,0.00036861,5]
[401243992,1768067443992,-1112.0,0.00036862,6]
[401243993,1768067444002,-1112.0,0.00036863,7]
[401243994,1768067444011,-1112.0,0.00036864,8]
[401243995,1768067444020,-453.20238294,0.00036873,2]
[401243996,1768067444030,-453.20238294,0.0003691,2]
[401243997,1768067444039,-453.20238294,0.00036947,2]
[401243998,1768067444050,-974.22751705,0.00037,10]
[401243999,1768067444060,-800.0,0.00037014,7]
[401244000,1768067444069,-2818288.22240928,0.00037044,20]
[401244001,1768067444078,-330.69493327,0.00037044,2]
[401244002,1768067444087,-173294.04145141,0.00037044,5]
[401244003,1768067444097,-151.0,0.00037044,15]
[401244004,1768067444106,-500.0,0.00037044,7]
[401244005,1768067444115,-498.0,0.00037044,7]
[401244006,1768067444124,-156.42438347,0.00037044,7]
[401244007,1768067444133,-178.88409179,0.00037044,7]
[401244008,1768067444142,-1020.56420175,0.00037044,7]
[401244009,1768067444153,-22500.0,0.00037044,3]
[401244010,1768067444163,-479078.78878589,0.00037044,15]
[401244011,1768067444182,-467.36405851,0.00037044,15]
[401244012,1768067444194,-427.54161644,0.00037044,15]
[401244013,1768067444207,-2000.47074683,0.00037044,15]
[401244014,1768067445422,-18025.83479233,0.00037044,15]
[401244015,1768067445431,-150.0,0.00037044,2]
[401244016,1768067445441,-51360.76048502,0.00037044,7]
[401244017,1768067445453,-15841.73305645,0.00037044,7]
[401244018,1768067445464,-728.12039936,0.00037044,7]
[401244019,1768067445526,-726.62003066,0.00037044,7]
[401244034,1768067446113,-2190.58548814,0.00037044,7]
[401244069,1768067654793,-10000.0,9.893e-05,2]
[401244070,1768067659231,-4000.0,9.893e-05,2]
[401244071,1768067672903,163.32,7.927e-05,2]
[401244072,1768067673384,186.65,8.221e-05,2]
[401244073,1768067673811,209.98,8.514e-05,2]
[401244074,1768067674222,233.32,8.808e-05,2]
[401244088,1768068002845,150.0,7.598e-05,2]
[401244089,1768068200592,150.0,7.797e-05,2]
[401244090,1768068265849,150.0,7.238e-05,2]
[401244091,1768068266186,150.0,7.567e-05,2]
[401244092,1768068266584,150.0,7.896e-05,2]
[401244093,1768068283550,-150.0,9.618e-05,2]
[401244094,1768068283585,-500.0,9.618e-05,2]
[401244095,1768068283614,-150.0,9.618e-05,2]
[401244096,1768068283642,-150.0,9.618e-05,2]
[401244097,1768068330440,150.0,6.297e-05,2]
[401244098,1768068455294,-150.0,9.617e-05,2]
[401244099,1768068455322,-150.0,9.617e-05,2]
[401244100,1768068455350,-150.0,9.617e-05,2]
[401244101,1768068479619,221.05,8.238e-05,2]
[401244102,1768068588646,150.0,6.445e-05,2]
[401244103,1768068588930,150.0,6.752e-05,2]
[401244104,1768068589337,150.0,7.059e-05,2]
[401244105,1768068589724,150.0,7.366e-05,2]
[401244106,1768068589814,-150.0,9.617e-05,2]
[401244107,1768068589844,-500.0,9.617e-05,2]
[401244108,1768068589872,-500.0,9.617e-05,2]
[401244109,1768068589901,-500.0,9.617e-05,2]
[401244110,1768068589933,-150.0,9.617e-05,2]
[401244111,1768068589964,-500.0,9.617e-05,2]
[401244112,1768068589990,-150.0,9.617e-05,2]
[401244113,1768068590208,150.0,7.673e-05,2]
[401244114,1768068590596,150.0,7.98e-05,2]
[401244115,1768068590978,150.0,8.287e-05,2]
[401244116,1768068591378,168.36,8.593e-05,2]
[401244117,1768068591788,189.4,8.9e-05,2]
[401244118,1768068592174,210.45,9.207e-05,2]
[401244139,1768068632416,-210.0,9.753e-05,2]
[401244140,1768068632426,-300.0,9.753e-05,2]
[401244141,1768068632436,-211.70839152,9.753e-05,2]
[401244142,1768068632447,-345.29160848,9.753e-05,2]
[401244143,1768068632457,-160.24191095,9.753e-05,2]
[401244144,1768068632466,-150.0,9.754e-05,2]
[401244145,1768068632475,-150.0,9.754e-05,2]
[401244146,1768068632484,-150.0,9.754e-05,2]
[401244147,1768068632494,-150.0,9.754e-05,2]
[401244148,1768068632503,-225.33157146,9.754e-05,2]
[401244149,1768068632517,-274.66842854,9.754e-05,2]
[401244150,1768068632527,-500.0,9.754e-05,2]
[401244151,1768068632537,-500.0,9.754e-05,2]
[401244152,1768068632547,-150.0,9.754e-05,2]
[401244153,1768068632556,-500.0,9.754e-05,2]
[401244154,1768068632565,-150.0,9.754e-05,2]
[401244155,1768068632575,-150.0,9.755e-05,2]
[401244156,1768068632585,-150.0,9.755e-05,2]
[401244157,1768068632594,-500.0,9.755e-05,2]
[401244158,1768068632604,-150.0,9.755e-05,2]
[401244159,1768068632613,-800.10001,9.79e-05,2]
[401244160,1768068632623,-634.99855643,9.79e-05,2]
[401244161,1768068632633,-27026.05300503,9.791e-05,2]
[401244188,1768068638211,-23339.68144704,9.754e-05,2]
[401244189,1768068638225,-26660.31855296,9.754e-05,2]
[401244190,1768068638235,-500.0,9.79e-05,2]
[401244191,1768068638245,-500.0,9.79e-05,2]
[401244192,1768068638255,-500.0,9.79e-05,2]
[401244193,1768068638264,-500.0,9.79e-05,2]
[401244194,1768068638273,-500.0,9.79e-05,2]
[401244196,1768068638283,-500.0,9.79e-05,2]
[401244198,1768068638292,-500.0,9.79e-05,2]
[401244200,1768068638303,-500.0,9.79e-05,2]
[401244201,1768068638312,-500.0,9.79e-05,2]
[401244203,1768068638322,-500.0,9.79e-05,2]
[401244205,1768068638331,-500.0,9.79e-05,2]
[401244206,1768068638340,-493.6860772,9.79e-05,2]
[401244207,1768068638349,-500.0,9.79e-05,2]
[401244208,1768068638359,-500.0,9.79e-05,2]
[401244209,1768068638368,-500.0,9.79e-05,2]
[401244210,1768068638378,-500.0,9.79e-05,2]
[401244212,1768068638387,-500.0,9.79e-05,2]
[401244214,1768068638396,-500.0,9.79e-05,2]
[401244215,1768068638405,-500.0,9.79e-05,2]
[401244217,1768068638415,-500.0,9.79e-05,2]
[401244219,1768068638425,-500.0,9.79e-05,2]
[401244221,1768068638435,-500.0,9.79e-05,2]
[401244223,1768068638444,-500.0,9.79e-05,2]
[401244225,1768068638454,-500.0,9.79e-05,2]
[401244227,1768068638464,-500.0,9.79e-05,2]
[401244229,1768068638474,-500.0,9.79e-05,2]
[401244230,1768068638484,-500.0,9.79e-05,2]
[401244231,1768068638493,-500.0,9.79e-05,2]
[401244232,1768068638503,-500.0,9.79e-05,2]
[401244233,1768068638513,-500.0,9.79e-05,2]
[401244234,1768068638522,-500.0,9.79e-05,2]
[401244235,1768068638532,-493.59928337,9.79e-05,2]
[401244236,1768068638542,-500.0,9.79e-05,2]
[401244237,1768068638552,-500.0,9.79e-05,2]
[401244239,1768068638562,-500.0,9.79e-05,2]
[401244241,1768068638571,-500.0,9.79e-05,2]
[401244242,1768068638582,-500.0,9.79e-05,2]
[401244244,1768068638592,-500.0,9.79e-05,2]
[401244246,1768068638601,-500.0,9.79e-05,2]
[401244247,1768068638612,-500.0,9.79e-05,2]
[401244248,1768068638621,-500.0,9.79e-05,2]
[401244249,1768068638631,-500.0,9.79e-05,2]
[401244250,1768068638644,-500.0,9.79e-05,2]
[401244251,1768068638653,-500.0,9.79e-05,2]
[401244252,1768068638662,-500.0,9.79e-05,2]
[401244253,1768068638672,-500.0,9.79e-05,2]
[401244254,1768068638683,-500.0,9.79e-05,2]
[401244255,1768068638693,-579.59138055,9.79e-05,2]
[401244256,1768068638703,-500.0,9.79e-05,2]
[401244257,1768068638714,-972973.94699497,9.791e-05,2]
[401244258,1768068638723,-500.0,9.891e-05,2]
[401244259,1768068638732,-150.0,9.891e-05,2]
[401244260,1768068638742,-150.0,9.891e-05,2]
[401244261,1768068638751,-150.0,9.891e-05,2]
[401244262,1768068638761,-210.53229853,9.891e-05,2]
[401244263,1768068638771,-500.0,9.891e-05,2]
[401244264,1768068638781,-500.0,9.891e-05,2]
[401244265,1768068638790,-500.0,9.891e-05,2]
[401244266,1768068638800,-200.0,9.891e-05,2]
[401244267,1768068638809,-500.0,9.891e-05,2]
[401244268,1768068638818,-150.0,9.891e-05,2]
[401244269,1768068638828,-440.15,9.891e-05,2]
[401244270,1768068638837,-150.0,9.892e-05,2]
[401244271,1768068638846,-200.0,9.892e-05,2]
[401244272,1768068638856,-500.88241622,9.892e-05,2]
[401244273,1768068638866,-150.0,9.892e-05,2]
[401244274,1768068638876,-2717.39151148,9.907e-05,2]
[401244275,1768068638885,-2717.39151148,9.914e-05,2]